Workbook

Sheet 操作流程
A1: 应收应付操作流程
A2: 步骤 | B2: 内容 | C2: 明细 | D2: 录入部门 | E2: 备注
A3: 1 | B3: 客户信息资料维护 | D3: 客服部
A4: 2 | B4: 基础数据维护（报价） | C4: 应收应付报价维护 | D4: 财务部
A5: 3 | B5: 数据录入（业务） | C5: （1）派送费/操作费/综合税费 | D5: 跟订单数据
C6: （2）运输报关费用 | D6: 关务部
C7: （3）产品备案 | D7: 客服部
C8: （4）仓储数据 | D8: 仓库
C9: (5)耗材费 | D9: 仓库
A10: 4 | B10: 结账 | C10: 在规定时间内 | D10: 系统结账 | E10: 录入时效性，超过规定时间或错误超过3次，需申请开通权限
A11: 5 | B11: 生成收款通知待复核数据 | D11: 系统结账 | E11: 查看格式（收款通知书)
A12: 6 | B12: 复核 | C12: （1）有误：进行第3步修改 | D12: 财务部
C13: （2）无误：进行下一步
A14: 7 | B14: 生成收款通知书（电子档） | D14: 财务部
A15: 8 | B15: 通知客服部领取（电子档）
A16: 9 | B16: 客服部线下邮件客户收款通知书（电子档） | C16: 客服部邮件给到客户（收款通知书及明细账） | D16: 客服部
A17: 10 | B17: 反馈商户收款通知书复核结果 | C17: （1）有误：进行第3步修改 | D17: 客服部 | E17: （财务部授权重录解锁）--财务复核重录数据--按钮触发重新生成收款通知书--重复步骤8
C18: （2）无误：进行下一步
A19: 11 | B19: 通知开票 | C19: 客服通知财务开票 | D19: 客服部 | E19: 开票线下操作
A20: 12 | B20: 已开具（通知领票） | D20: 财务部
A21: 13 | B21: 领取发票 | C21: 确认领取发票 | D21: 客服部
A22: 14 | B22: 客服跟踪及催收款项 | D22: 客服部 | E22: 财务查看进度功能
A23: 15 | B23: 账款核销 | D23: 财务部 | E23: 收到款项勾选核销

Sheet 商户费率及维护字段
C1: 仓储费率
A2: 商户费率 | C2: 归属商户 | D2: 库位包租仓储 | E2: 固定面积仓储 | F2: 重量 | G2: 体积
D3: *报价 | E3: *报价 | F3: *报价 | G3: *报价
A6: 录入数据界面 | C6: 仓储费
B7: 日期 | C7: 商户名称 | D7: 库位包租仓储 | E7: 固定面积仓储 | F7: 重量 | G7: 体积 | H7: 数据归集收费账目 | I7: 归口账单类型 | J7: 计费规则
H8: 仓租费 | I8: 应收账单 | J8: 1、固定仓库区域包租形式 2、 库位包租形式，以实际占用数量计算收费面积，最少起租面积不少于35平方米
C10: 包裹操作费率（订单抓取）-费用录入界面无
C11: 归属商户 | D11: 操作费之起步价格 | E11: 出库操作费之递增价格 | F11: 数据归集收费账目 | G11: 归口账单类型 | H11: 计费规则
D12: *报价 | E12: *报价 | F12: 订单包裹费 | G12: 应收账单 | H12: 1、小于等于3件按起步价收取2、包裹商品数量>3件,每增加一件收0.5元,放促销物宣传单视同计件； 2）包裹商品数量>10件，按最大数量限额10件来拆分为多个包裹，分别计算收取操作费；
A15: 商户费率 | C15: 园区仓库装卸费率
C16: 归属商户 | D16: 重量 | E16: 体积 | F16: 整柜 | G16: 板
D17: *报价 | E17: *报价 | F17: *报价 | G17: *报价
A20: 录入数据界面 | C20: 园区仓库装卸费
B21: 日期 | C21: 商户名称 | D21: 重量 | E21: 体积 | F21: 整柜 | G21: 板 | H21: 其他 | I21: 数据归集收费账目 | J21: 归口账单类型 | K21: 计费规则
I22: 库内操作费 | J22: 应收账单
A25: 商户费率 | C25: 库内操作费率
C26: 归属商户 | D26: 理货费 | E26: 收货验货费率 | F26: 产品重新贴条码/标签
D27: *报价 | E27: *报价 | F27: *报价
A29: 录入数据界面 | C29: 库内操作费 | H29: 数据归集收费账目 | I29: 归口账单类型
B30: 日期 | C30: 商户名称 | D30: 仓库理货费 | E30: 收货验货费 | F30: 产品重新贴条码/标签 | G30: 库内增值服务 | H30: 库内操作费 | I30: 应收账单
D31: 优缺优缺点件
A33: 商户费率 | C33: 备案费率
C34: 归属商户 | D34: 企业备案费 | E34: 产品备案费
D35: *报价 | E35: *报价
C37: 备案费 | F37: 其他
A38: 录入数据界面 | B38: 日期 | C38: 商户名称 | D38: 企业备案费 | E38: 产品备案费 | G38: 数据归集收费账目 | H38: 归口账单类型
D39: 优缺优缺点件 | G39: 代理通关费 | H39: 应收账单
A42: 商户费率 | C42: 通关操作费率
C43: 归属商户 | D43: 入区报关操作费（首页） | E43: 入区报关操作费（续页数） | F43: 入区报关操作费（续页报价） | G43: 报备费（登记写卡费） | H43: 报关单改单费 | I43: 报关单删单费 | J43: 违规申报 | K43: 自用物资报备费
D44: *报价 | F44: *报价 | G44: *报价 | H44: *报价 | I44: *报价 | J44: *报价 | K44: *报价
A46: 录入数据界面 | C46: 通关操作费
B47: 日期 | C47: 商户名称 | D47: 入区报关操作费（首页） | E47: 入区报关操作费（续页） | F47: 报备费（登记写卡费） | G47: 报关单改单费 | H47: 报关单删单费 | I47: 违规申报 | J47: 自用物资报备费 | K47: 报检代理费 | L47: 其他 | M47: 数据归集收费账目 | N47: 归口账单类型
D48: 优缺优缺点件 | M48: 代理通关费 | N48: 应收账单
A51: 录入数据界面 | C51: 招商园区费用(无费率，直接录入金额)
B52: 日期 | C52: 商户名称 | D52: 承运商 | E52: 货物在场证明费 | F52: 园区过夜停车费 | G52: 节假日写卡加班费 | H52: 普通写卡加班费 | I52: 区内监管电子关锁使用费 | J52: 区内监管电子关锁逾期使用费 | K52: 区内监管电子关锁使用费 | L52: 区内监管电子关锁逾期使用费 | M52: 闸门布控车辆过机查验费 | N52: 统一版布控包裹过机查验费 | O52: 查验异常包裹超期堆存费 | P52: 数据归集收费账目 | Q52: 归口账单类型
P53: 代理通关费 | Q53: 应收账单/应付账单
F56: 运输费率
A57: 商户费率 | C57: 归属商户 | D57: 起始地 | E57: 3T | F57: 5T | G57: 8T | H57: 10T | I57: 12T | J57: 20GP | K57: 40GP | L57: 45HQ | M57: 香港装卸费率（仅中港车）
E58: 运输费/返空费/压日/压夜费 | F58: 运输费/返空费/压日/压夜费 | G58: 运输费/返空费/压日/压夜费 | H58: 运输费/返空费/压日/压夜费 | I58: 运输费/返空费/压日/压夜费 | J58: 运输费/返空费/压日/压夜费 | K58: 运输费/返空费/压日/压夜费 | L58: 运输费/返空费/压日/压夜费 | M58: 重量 | N58: 体积 | O58: 板 | P58: 箱
D59: 1、前海湾保税港区——深圳门店 | E59: *报价 | F59: *报价 | G59: *报价 | H59: *报价 | I59: *报价 | J59: *报价 | K59: *报价 | L59: *报价
D60: 2、前海湾保税港区-深圳门店（单点） | E60: *报价 | F60: *报价 | G60: *报价 | H60: *报价 | I60: *报价 | J60: *报价 | K60: *报价 | L60: *报价
D61: 3、中港车费用 | E61: *报价 | F61: *报价 | G61: *报价 | H61: *报价 | I61: *报价 | J61: *报价 | K61: *报价 | L61: *报价 | M61: *报价 | N61: *报价 | O61: *报价 | P61: *报价
D62: 4、蛇口码头运输费用 | E62: *报价 | F62: *报价 | G62: *报价 | H62: *报价 | I62: *报价 | J62: *报价 | K62: *报价 | L62: *报价
D63: 5、深圳机场-前海湾保税港 | E63: *报价 | F63: *报价 | G63: *报价 | H63: *报价 | I63: *报价 | J63: *报价 | K63: *报价 | L63: *报价
A65: 录入数据界面 | D65: 运输费
B66: 日期 | C66: 商户名称 | D66: 报关单号 | E66: 承运商 | F66: 起始地 | G66: 车型 | H66: 车牌号 | I66: 货物单位 | J66: 币种 | K66: 运费 | L66: 返空费/压日/压夜费 | M66: 舱单 | N66: 进出口报关 | O66: 偏远费 | P66: 提货/装卸费 | Q66: 超时费 | R66: 登记费 | S66: 换提单手续费 | T66: 排仓费 | U66: 过站费 | V66: 港口建设费 | W66: 园区库内装卸费 | X66: 报检代理 | Y66: 海关查验费 | Z66: 代垫费 | AA66: 香港仓租 | AB66: 杂费 | AC66: 合计 | AD66: 备注 | AE66: 数据归集收费账目 | AF66: 归口账单类型
E67: 选择 | F67: 选择 | G67: 选择 | I67: 选择香港装卸费率对应的（重量/体积/卡板/箱）， | K67: 根据车型对应的运输费率 | L67: 根据车型对应 | P67: 根据香港装卸费率来计算四种费用，应该分成4x2（费用）x2(数量）个字段 | AE67: 运输费 | AF67: 应收账单/应付账单
C71: 包裹快递费率（数据从OMS系统抓取）
C72: 物流公司名称 | D72: 物流运送类型 | E72: 归属商户 | F72: 收寄地区 | G72: 送达省份 | H72: 送达城市 | I72: 首重费 | J72: 首重限重 | K72: 续重金额 | L72: 续重重量 | M72: ≤1kg价格 | N72: >1kg≤3.5kg价格 | O72: >3.5kg价格 | P72: 数据归集收费账目 | Q72: 归口账单类型
A73: 物流费率 | C73: 韵达快递 | I73: *报价 | K73: *报价 | M73: *报价 | N73: *报价 | O73: 首重+续重报价 | P73: 订单包裹费 | Q73: 应收账单/应付账单
C74: 中通快递 | I74: *报价 | K74: *报价
C75: 中国邮政 | I75: *报价 | K75: *报价
C76: 顺丰快递 | I76: *报价 | K76: *报价
A81: 商户费率 | C81: 纸箱耗材费率（包括自有和商户分类），天虹使用的自有纸箱 | D81: 按耗材所在sheet设置费率维护
C82: 天虹纸箱耗材费用 | D82: 天虹的纸费和耗材费跟订单抓取结算，其纸箱费和耗材费计入订 包裹费用，归集为订单包裹费
C83: 非天虹纸箱耗材费用 | D83: 手工维护纸箱和耗材数据，计入耗材费，结算后，归集入耗材费
A85: 录入数据界面（略）
A88: 备注： | B88: 录入金额黄色标记，业务数据（跟费率挂沟）用绿色标记

Sheet 计费数据来源
B1: 一、数据项目确认 | G1: 二、数据来源 | H1: 三、数据控制 | J1: 四、数据归口 | L1: 五、数据复核 | M1: 六、账款核销 | N1: 客户管理
A2: 业务发生阶段 | B2: 收费项目 | C2: 业务模式 | D2: 计费公式 | E2: 计费规则 | F2: 产生收费结点 | G2: 原始数据来源维护部门 | H2: 原始数据提取方式 | I2: 数据归集类型 | J2: 数据归集收费账目 | L2: 生成挂账凭证 | M2: 收款核销 （生成记账凭证）
B3: 一、备案收费
A4: 客户进货前准备 | B4: 1、企业备案费 | D4: 一次固定收费 | E4: 固定报价 | F4: 业务完结后 | G4: 客服部 | H4: 手工维护 | I4: 整批核算 | J4: 代理通关费 | K4: 应收
B5: 2、产品备案费 | D5: SKU*单价 | E5: 固定报价*SKU备案数量
A7: 货物报关前准备 | B7: 二、报关操作
B8: 1、报关单改单费 | D8: 固定报价费率 | F8: 业务完结后 | G8: 关务部 | H8: 手工维护 | I8: 整批核算 | J8: 代理通关费
B9: 2、报关单删单费 | D9: 固定报价费率 | K9: 应收
B10: 3、违规申报 | D10: 固定报价费率
B11: 4、入区报关操作费 | D11: 固定报价费率（首页*续页） | E11: 固定报价（首页XX元，续页RMBX/票（每份报关单最多50项，每5项为一页）
B12: 5、自用物资报备费
B13: 6、报检代理费
B15: 三、招商园区费用
B16: 报备费（登记写卡费） | E16: 固定报价 | F16: 业务完结后 | G16: 招商账单 （关务核实） | H16: 手工维护 | I16: 整批核算 | J16: 代理通关费 | K16: 应收/应付
B17: 货物在场证明费 | E17: 固定报价
A18: 货物到港提货约车至入园区 | B18: 园区过夜停车费 | E18: 夜间21:00时至夜间24:00时入闸且在园区停留时间超过6小时，或在除此之外的其它时间入闸，超过夜间24:00出闸的 | F18: 业务完结后
B19: 节假日写卡加班费 | E19: 在国家法定节假日发送运抵、写卡和开具在场证明
B20: 普通写卡加班费 | E20: 在5:30PM至11:00PM间加班发送运抵、写卡和开具在场证明
B21: 区内监管电子关锁使用费 | E21: 固定报价 | F21: 业务完结后
B22: 区内监管电子关锁逾期使用费
B23: 闸门布控车辆过机查验费
B24: 统一版布控包裹过机查验费
B25: 查验异常包裹超期堆存费
B27: 四、代垫费
B28: 1、海关查验费 | D28: 实报实销 | E28: 实报实销 | F28: 业务完结后 | G28: 关务部 | H28: 手工维护 | I28: 整批核算 | J28: 运输费 | K28: 应收/应付
B29: 2、国检查验费
B30: 3、国检CIC站台查验费
A32: 商品在库 | B32: 五、仓储费
B33: 1、固定面积收租 | D33: 固定报价*每月 | E33: 1） 固定仓库区域包租形式；签约日起，免租期15天； 2）500平米起租,超过500平米则以100平米为单位递租； 3）固定包租应承担仓储面积25%公摊率； 4）包材仓租费按实际面积计算 | F33: 业务完结后 | G33: WMS系统 （仓库核实） | H33: 系统提取 | I33: 整批核算 | J33: 仓租 | K33: 应收
B34: 2、库位包租 | D34: 固定报价*每月 | E34: 1） 库位包租形式； 2）以实际占用数量计算收费面积，最少起租面积不少于35平方米（地面卡板库位9位+轻型货架位1组+重型货架位1组） 3）租赁面积：卡板库位=3.2㎡/个，轻型货架位=4㎡/组，重型货架位=2㎡/位； 4）包材仓租费按实际面积计算
B35: 3、按立方收取 | D35: 固定报价*立方数*每天 | E35: 按每天立方数收取
B37: 六、园区装卸费
B38: 1、按重量收取 | D38: 固定报价*货物重量 | E38: 三者以大者计收（最低收费100元） | F38: 业务完结后 | G38: 仓库 | H38: 系统提取 | I38: 整批核算 | J38: 库内操作费 | K38: 应收
B39: 2、按体积收取 | D39: 固定报价*货物体积 | H39: 手工维护
B40: 3、按卡板收取 | D40: 固定报价*货物卡板数
B41: 4、按整柜收取 | C41: 一般贸易（新增） | D41: 固定报价*柜数
B43: 六、库内增值服务
B44: 1、放宣传物及礼品 | J44: 库内操作费
B46: 七、包裹操作费
A47: 包裹在库 | B47: 1、订单操作费1 | C47: 备货模式 | D47: 阶梯式报价*包裹/个 | E47: 1）包裹商品数量>3件,每增加一件收0.5元,放促销物宣传单视同计件； 2）包裹商品数量>10件，按最大数量限额10件来拆分为多个包裹，分别计算收取操作费； | F47: 订单操作中 | G47: WMS系统 （仓库核实） | H47: 系统提取 | I47: 跟着订单票结 | J47: 订单包裹费 | K47: 应收
B48: 2、订单操作费2 | C48: 展示出区
B49: 订单使用耗材费1 订单使用耗材费2 | C49: 备货模式 展示出区 | D49: 箱型*报价
D50: 实际领用*报价
B52: 八、包裹快递费
A53: 包裹出库 | B53: 1、正常订单派送费 | F53: 订单操作中 | G53: WMS系统 （财务部核实） | H53: 系统提取 | I53: 跟着订单票结
B54: 顺丰快递 | C54: 备货模式 | D54: 首重+续重 | E54: 1、顺丰、中通=首重+续重 2、韵达-按重量区间计费 | J54: 订单包裹费 | K54: 应收/应付
B55: 中通快递
B56: 邮政快递
B57: 韵达快递
C58: 展示模式 | D58: 一口报价 | E58: 如当天出车订单量小于200单，另加收XXX元运输费
B59: 2、异常订单派送费 | G59: 客服 | H59: 手工维护
B62: 九、库内操作业费
B63: 理货费 | D63: 固定报价*件数 | F63: 业务完结后 | G63: 仓库 | H63: 手工维护 | I63: 整批核算 | J63: 库内操作费 | K63: 应收
B64: 卡板费 | D64: 固定报价*卡板数
B65: 验货费 | D65: 固定报价*件数 | F65: 业务完结后
B66: 贴条码费
B68: 十、运输费
B69: 1、园区-门店（国内运输） | C69: 展示出区 | D69: 车型*固定报价 | F69: 业务完结后 | G69: 关务 | H69: 手工维护 | I69: 整批核算 | J69: 运输费 | K69: 应收/应付
B70: 2、HK-保税区（中港运输） | C70: 备货模式 | E70: 压夜费在次日12:00前则最低按当次运费80%的计算，若压车超过次日中午12:00则最低按运费的100%计算
B71: 运输费 | D71: 车型*固定报价
B72: 压日/夜费 | D72: 车型*固定报价*80%或100% | E72: 压夜费在次日12:00前则最低按当次运费80%的计算，若压车超过次日中午12:00则最低按运费的100%计算
B73: 返空费 | D73: 车型*固定报价*80%或100% | E73: 车辆已到装货点，非我司原因导致车辆放空，返空费按该趟运费的100%计算； 车辆已到在装货途中导致车辆放空，返空费按该趟运费的80%计算（产生相关费用时，实报实销）
B74: 提货及装卸费 | D74: 重量、体积、卡板、箱数*单价（取大收取） | E74: KG//CBM/plt/CTN;四者以大者计收（最低消费RMBXX/仓，如需多点提货和多点卸货每地加收XXX元）
B75: 清关费 | E75: 香港进口报关费收费：报关代理费RMB106，无缝清关RMB53元、香港税金实报实销（最低收费212元单）；香港出口代理报关收费模式与进口报关相同。
B76: 其他杂费 | D76: 实报实销
B77: 3、机场-保税区（国内运输）
B78: 4、蛇口码头-保税区（国内运输）
B80: 十一、税单 | F80: 订单操作中 | G80: 技术部 | H80: 系统提取 | I80: 跟着订单票结
B88: 7、功能需求：查询、修改、筛选、删除、导出excel、打印

Sheet 耗材费率
A1: 手工录入耗材费率(非天虹)
A2: 归属商户 | B2: 品名 | C2: 规格 | D2: 个 | E2: 卷 | F2: 板
B3: 0#化妆盒 | C3: 16*10.8*9.6
B4: 1#化妆盒 | C4: 22*15*10
B5: 2#化妆盒 | C5: 26*15*18
B6: N1（5#） | C6: 32*20*27
B7: N2（6#） | C7: 40*32*27
B8: N3（7#） | C8: 48*40*27
B9: N4 | C9: 40*32*54
B10: 气泡膜 | C10: 30cm*60cm
B11: 胶纸 | C11: 5cm
B12: 气泡袋 | C12: 20*30
B13: 气泡袋 | C13: 20*40
B14: 气泡袋 | C14: 25*40
B15: 填充气泡 | C15: 10*20
B16: 缠绕膜 | C16: 45cm
B17: 塑胶卡板 | G17: wq knx
B18: 木卡板
A21: 跟订单抓取的耗材费率(备货）（计入包裹操作费用）
A22: 归属商户（仅天虹） | B22: 纸箱规格 | C22: 纸箱代码 | D22: 纸箱费（使用我司纸箱） | E22: 耗材费用 | F22: 数据归集收费账目 | G22: 归口账单类型
D23: *报价 | E23: *报价 | F23: 订单包裹费 | G23: 应收账单
B24: 18*13*8cm(自有纸箱） | C24: 1#(原箱）
B25: 24*13.5*16.5cm(自有纸箱） | C25: 2#
B26: 29*17*19cm(自有纸箱） | C26: 3#
B27: 37*23*12cm(自有纸箱） | C27: 4#
B28: 37*23*20cm(自有纸箱） | C28: 5#、6#、7#、8#
B29: 16*10.8*9.6cm（使用我司纸箱） | C29: 0#化妆品盒
B30: 22*15*10cm（使用我司纸箱） | C30: 1#化妆品盒
B31: 26*15*18cm（使用我司纸箱） | C31: 2#化妆品盒
B32: 32*20*27cm（使用我司纸箱） | C32: N1
B33: 40*32*27cm（使用我司纸箱） | C33: N2
B34: 48*40*27cm（使用我司纸箱） | C34: N3
B35: 40*32*52cm（使用我司纸箱） | C35: N4
A38: 跟订单抓取的耗材费率(保税展示）（计入包裹操作费用）
A39: 归属商户（仅天虹） | B39: 纸箱规格 | C39: 纸箱代码 | D39: 纸箱费（使用我司纸箱） | E39: 耗材费用 | F39: 数据归集收费账目 | G39: 归口账单类型
D40: *报价 | E40: *报价 | F40: 订单包裹费 | G40: 应收账单
B41: 24*10*7cm(自有纸箱） | C41: 001
B42: 25*19*18.5cm(自有纸箱） | C42: 002
B43: 23*16*13.5cm(自有纸箱） | C43: 003
B44: 29.5*17*15cm(自有纸箱） | C44: 004
B45: 34.5*19.5*14.5cm(自有纸箱） | C45: 005
B46: 39*27*16cm(自有纸箱） | C46: 006
B47: 40*38*25cm(自有纸箱） | C47: 007

Sheet 供应商 商户档案
A1: 供应商基本信息
A2: 地区 | C2: 省 | E2: 市
A3: 联系人 | C3: 电话
A4: 供应商编号 | C4: 供应商类别： | D4: 物流供应商/原材料供应商/其他 | E4: 供应商分类 | F4: 中港运输/国内运输/快递运输/仓库耗材/办事耗材/其他
A5: 供应商名称
A11: 财务信息
A12: 结算方式 | B12: 月结 | C12: 币种 | E12: 开户行
A13: 户名 | C13: 帐号
A14: 纳税人类型 | B14: 一般纳税人/小规模纳税人/其他 | C14: 税率 | D14: % | E14: 税票类型 | F14: 增值税专用发票/增值税普通发票/形式发票
A18: 客户基本信息
A19: 地区 | C19: 省 | E19: 市
A20: 联系人 | C20: 电话
A21: 供应商编号 | C21: 供应商类别： | D21: 物流供应商/原材料供应商/其他 | E21: 供应商分类 | F21: 中港运输/国内运输/快递运输/仓库耗材/办事耗材/其他
A22: 供应商名称
A28: 财务信息
A29: 结算方式 | B29: 月结 | C29: 币种 | E29: 开户行
A30: 户名 | C30: 帐号
A31: 纳税人类型 | B31: 一般纳税人/小规模纳税人/其他 | C31: 税率 | D31: % | E31: 税票类型 | F31: 增值税专用发票/增值税普通发票/形式发票

Sheet 前海电商收款通知书
E3: 深圳前海电商供应链管理有限公司
E4: ShenZhen Qianhai Electric Supply Chain Management CO.,Ltd
W6: Tel： | X6: 0755-21628280
L7: 收款通知书 DEBIT NOTE
W9: Fax： | X9: 0755-21628272
B13: 收款单号
B16: Debit Note No.:201809-FWF-QHK012
B18: 签发日期 | H18: 2018-10-12
B20: Issued Date:
B22: 客户 Payer:
B24: 计费区间 Billing Period: | J24: 2018年09月01日至09月30日
AA25: 税点： | AB25: 6%
B27: 序列号 No. | F27: 收费明细 Particulars | T27: 金额（人民币） Amount(in RMB) | Z27: 税额(人民币) TAX AMOUNT(RMB)
B28: 1 | F28: 9月仓储费 | T28: 1 | Z28: =T28*0.06 -> 0.06
B29: 2 | F29: 9月派送费及操作费 | T29: 1 | Z29: 0.06
B30: 3 | F30: 9月运输及代理费服务费 | T30: 1 | Z30: 0.06
B31: 4 | F31: 9月耗材费 | T31: 1 | Z31: 0.06
B32: 5 | F32: 9月技术服务费 | T32: 1 | Z32: 0.06
B33: 6 | F33: 9月异常费用 | T33: 1 | Z33: 0.06
Z36: =T36*0.06 -> 0
Z37: 0
Z38: 0
Z39: 0
Z40: 0
B41: 小计 | T41: =SUM(T28:Y40) -> 6 | Z41: =SUM(Z28:AD40) -> 0.36
B42: 总计 | F42: =AA44&SUBSTITUTE(SUBSTITUTE(IF(-DOLLAR(T42),TEXT(T42,";负")&TEXT(INT(ABS(T42)+0.5%),"[dbnum2]G/通用格式元;;")&TEXT(RIGHT(DOLLAR(T42),2),"[dbnum2]0角0分;;整"),),"零角",IF(T42^2<1,,"零")),"零分","整") -> 人民币陆元叁角陆分 | T42: =T41+Z41 -> 6.36
B44: 公司银行资料 公司名称: 深圳前海电商供应链管理有限公司 开户银行: 中国建设银行深圳福华支行 帐号：44201010300052533720 地址：: 深圳市前海深港合作区临海大道59号海运中心口岸楼606G房 | AA44: 人民币
U47: 签发人：肖湘辉
B48: 请根据双方合同中约定的时间，以书面形式向签发人确认账单。如 付款人在收到本通知书之日起五日内不予书面确认的，则视为付款 人对本通知书内容已经于收到之日予以确认。
B50: Please confirm in writing within stipulated period in the agreement, otherwise it will be regarded as default.

Sheet 中网收款通知书
E2: 中网科技（深圳）有限公司
W4: Tel： | X4: 0755-21628280
L5: 收款通知书 DEBIT NOTE
W7: Fax： | X7: 0755-21628272
B11: 收款单号
B14: Debit Note No.:201809-FWF-APLZ030
B16: 签发日期 | H16: 2018-10-12
B18: Issued Date:
B20: 客户 Payer:
B22: 计费区间 Billing Period: | J22: 2018年10月1日至10月31日
AA23: 税点： | AB23: 0.06
B25: 序列号 No. | F25: 收费明细 Particulars | T25: 金额（人民币） Amount(in RMB) | Z25: 税额(人民币) TAX AMOUNT(RMB)
B26: 1 | F26: 10月平台服务费 | T26: 1 | Z26: =T26*0.06 -> 0.06
B27: 2
B28: 3 | Z28: 0
B29: 4
B30: 5 | Z30: 0
B31: 6
B32: 7
B33: 8
B34: 9
B35: 小计 | T35: =SUM(T26:T34) -> 1 | Z35: =SUM(Z26:Z34) -> 0.06
B36: 总计 | F36: =AA38&SUBSTITUTE(SUBSTITUTE(IF(-DOLLAR(T36),TEXT(T36,";负")&TEXT(INT(ABS(T36)+0.5%),"[dbnum2]G/通用格式元;;")&TEXT(RIGHT(DOLLAR(T36),2),"[dbnum2]0角0分;;整"),),"零角",IF(T36^2<1,,"零")),"零分","整") -> 人民币壹元零陆分 | T36: =T35+Z35 -> 1.06
B38: 公司银行资料 公司名称: 中网科技（深圳）有限公司 开户银行: 北京银行股份有限公司深圳分行 银行帐号： 20000032506200012146872 地址： 深圳市南山区南头街道桃园路1号西海明珠大厦E座1503 | AA38: 人民币
U41: 签发人：肖湘辉
B42: 请根据双方合同中约定的时间，以书面形式向签发人确认账单。如 付款人在收到本通知书之日起五日内不予书面确认的，则视为付款 人对本通知书内容已经于收到之日予以确认。
B44: Please confirm in writing within stipulated period in the agreement, otherwise it will be regarded as default.

Sheet 预缴税款收款通知书
A1: 深圳前海电商供应链管理有限公司
A2: 预缴税款收款通知书
A3: 签发日期 | B3: 2018-11-02
A4: 客户：
A5: 序列号 | B5: 收费明细 | F5: 金额（人民币）
A6: 1 | B6: 10月代缴保税电商综合税 | F6: 1
A18: 小计 | F18: =SUM(F6:F17) -> 1
A19: 总计 | B19: =F29&SUBSTITUTE(SUBSTITUTE(IF(-DOLLAR(F19),TEXT(F19,";负")&TEXT(INT(ABS(F19)+0.5%),"[dbnum2]G/通用格式元;;")&TEXT(RIGHT(DOLLAR(F19),2),"[dbnum2]0角0分;;整"),),"零角",IF(F19^2<1,,"零")),"零分","整") -> 人民币壹元整 | F19: =F18 -> 1
A22: 公司银行资料 公司名称: 深圳前海电商供应链管理有限公司 开户银行: 中国建设银行深圳福华支行 帐号： 44201010300052533720 地址： 深圳市前海深港合作区临海大道59号海运中心口岸楼606G房
A27: 此通知发出之日起15日内未缴清税款，我司将按逾期账款总金额收取日万分之五的滞纳金，滞纳金计算期间为自款项到期之日起至客户款项付至我司账户之日为止。 | F27: 签发人：肖湘辉
F29: 人民币

Sheet 保税备货快递、操作及耗材明细样例
A1: 序号 | B1: 发货时间 | C1: 第三方订单号 | D1: 商户名称 | E1: 保税模式 | F1: 快递公司 | G1: 快递单号 | H1: 订单重量 KG | I1: 省份 | J1: 城市 | K1: 派送费 | L1: 北京件调价 | M1: 纸箱代码 | N1: 纸箱费 | O1: 耗材费用 | P1: 操作费 | Q1: 合计 | R1: 备注
A2: 1 | B2: 2018-09-30 | C2: 602916934301 | D2: 天虹商场 | E2: 保税备货模式 | F2: 韵达速递 | G2: 3101976651435 | H2: 0.173 | I2: 广东省 | J2: 深圳市 | K2: 5.3 | M2: 001 | N2: 2.2 | O2: 0.5 | P2: 5 | Q2: =K2+L2+N2+O2+P2 -> 13 | R2: 使用我司纸箱
A3: 2 | B3: 2018-09-30 | C3: 602916571001 | D3: 天虹商场 | E3: 保税备货模式 | F3: 韵达速递 | G3: 3101976651433 | H3: 0.445 | I3: 广东省 | J3: 深圳市 | K3: 5.3 | M3: ISTH02 | O3: 0.8 | P3: 5 | Q3: =K3+L3+N3+O3+P3 -> 11.1
K5: =SUM(K2:K4) -> 10.6 | L5: =SUM(L2:L4) -> 0 | N5: =SUM(N2:N4) -> 2.2 | O5: =SUM(O2:O4) -> 1.3 | P5: =SUM(P2:P4) -> 10 | Q5: =SUM(Q2:Q4) -> 24.1
A9: 注：系统716票-114（天虹保税展示）=602（保税备货）
A12: 只有天虹有纸箱费、耗材费

Sheet 保税展示快递、操作及耗材明细样例
A1: 序号 | B1: 发货时间 | C1: 第三方订单号 | D1: 商户名称 | E1: 保税模式 | F1: 快递公司 | G1: 快递单号 | H1: 订单重量 KG | I1: 省份 | J1: 纸箱代码 | K1: 纸箱费用 | L1: 内耗费用 | M1: 派送费 | N1: 操作费 | O1: 合计
A2: 1 | B2: 2018-09-26 | C2: 602698948301 | D2: 天虹商场 | E2: 保税展示 | F2: 韵达速递 | G2: 3101976651318 | H2: 0.18 | I2: 广东省 | J2: 001 | K2: 0.3 | L2: 0.5 | M2: 4.3 | N2: 3.5 | O2: =K2+L2+M2+N2 -> 8.6
K6: =SUM(K2:K5) -> 0.3 | L6: =SUM(L2:L5) -> 0.5 | M6: =SUM(M2:M5) -> 4.3 | N6: =SUM(N2:N5) -> 3.5 | O6: =SUM(O2:O5) -> 8.6
D8: 只有天虹有纸箱费、耗材费

Sheet 综合税费明细样例
A1: 收货人姓名 | B1: 收货人联系电话 | C1: 第三方订单号 | D1: 电子税单编号 | E1: 应征关税（总计） | F1: 应征增值税（总计） | G1: 应征消费税（总计） | H1: 海关税单状态 | I1: 缴款书编号 | J1: 海关商品编码 | K1: 完税总价格 | L1: 应征关税 | M1: 应征增值税 | N1: 应征消费税 | O1: 合计 | P1: 客户名称
A2: 朱雪飞 | B2: 15854886535 | C2: 621600709501 | D2: 53492018I743014170_0 | E2: 0 | F2: 6.61 | G2: 0 | H2: 已生成 | J2: 3304990039 | K2: 59 | L2: 0 | M2: 6.61 | N2: 0 | O2: =L2+M2+N2 -> 6.61 | P2: 天虹商场
A3: 邱俊 | B3: 13683511049 | C3: 621699535201 | D3: 53492018I743014302_0 | E3: 0 | F3: 6.61 | G3: 0 | H3: 已生成 | J3: 4818900000 | K3: 59 | L3: 0 | M3: 6.61 | N3: 0 | O3: =L3+M3+N3 -> 6.61 | P3: 天虹商场
A4: 刘 | B4: 13543318878 | C4: 621699421001 | D4: 53492018I742273138_0 | E4: 0 | F4: 2.23 | G4: 0 | H4: 已生成 | J4: 3307900000 | K4: 19.9 | L4: 0 | M4: 2.23 | N4: 0 | O4: =L4+M4+N4 -> 2.23 | P4: 天虹商场
O6: =SUM(O2:O5) -> 15.45
